[Event "Early-Titled-Tuesday-Blitz-September-26-2023"]
[Site "Chess.com"]
[Date "2023.09.26"]
[Round "5"]
[White "Daniel_Salinas"]
[Black "djokovic74"]
[Result "0-1"]
[WhiteElo "2433"]
[BlackElo "2699"]
[TimeControl "180+1"]
[EndTime "8:58:31 PDT"]
[Termination "djokovic74 won on time"]

1. e4 {[%clk 0:03:00.9]} 1... e6 {[%clk 0:02:59.9]} 2. d4 {[%clk 0:03:00]} 2...
d5 {[%clk 0:03:00.6]} 3. Nd2 {[%clk 0:03:00.6]} 3... dxe4 {[%clk 0:03:00.9]} 4.
Nxe4 {[%clk 0:03:00.9]} 4... Bd7 {[%clk 0:03:01.6]} 5. Nf3 {[%clk 0:02:59.7]}
5... Bc6 {[%clk 0:03:02]} 6. Neg5 {[%clk 0:03:00.2]} 6... Nd7 {[%clk 0:02:37]}
7. Nxf7 {[%clk 0:02:49.9]} 7... Kxf7 {[%clk 0:02:36.5]} 8. Ng5+ {[%clk
0:02:50.5]} 8... Ke8 {[%clk 0:02:15.9]} 9. Nxe6 {[%clk 0:02:40.6]} 9... Qe7
{[%clk 0:02:16.1]} 10. Bc4 {[%clk 0:02:35.3]} 10... Nb6 {[%clk 0:01:47.1]} 11.
Bb3 {[%clk 0:02:34.6]} 11... Bxg2 {[%clk 0:01:23.3]} 12. Rg1 {[%clk 0:01:47.7]}
12... Bd5 {[%clk 0:01:22.1]} 13. Bxd5 {[%clk 0:01:42]} 13... Nxd5 {[%clk
0:01:22.5]} 14. Qh5+ {[%clk 0:01:42.5]} 14... g6 {[%clk 0:01:21.3]} 15. Qxd5
{[%clk 0:01:42.8]} 15... Kf7 {[%clk 0:01:17.4]} 16. Be3 {[%clk 0:01:38.8]} 16...
Qxe6 {[%clk 0:01:15.3]} 17. Qxb7 {[%clk 0:01:37.8]} 17... Rc8 {[%clk 0:00:58.7]}
18. O-O-O {[%clk 0:01:36.4]} 18... Nf6 {[%clk 0:00:59]} 19. d5 {[%clk
0:01:34.2]} 19... Qd7 {[%clk 0:00:57.4]} 20. Bd4 {[%clk 0:00:54.4]} 20... Bg7
{[%clk 0:00:56.8]} 21. Qb3 {[%clk 0:00:55]} 21... Rb8 {[%clk 0:00:48.7]} 22. Qc4
{[%clk 0:00:50.4]} 22... Rhc8 {[%clk 0:00:32.1]} 23. Rge1 {[%clk 0:00:38.6]}
23... Bh6+ {[%clk 0:00:18.5]} 24. Kb1 {[%clk 0:00:37.7]} 24... Qxd5 {[%clk
0:00:12]} 25. Qc3 {[%clk 0:00:10.6]} 25... Nd7 {[%clk 0:00:02.7]} 26. Bxa7
{[%clk 0:00:08.7]} 26... Qf5 {[%clk 0:00:01.6]} 27. Bxb8 {[%clk 0:00:08.5]}
27... Nxb8 {[%clk 0:00:01.7]} 28. Re5 {[%clk 0:00:07.3]} 28... Qf6 {[%clk
0:00:01.7]} 29. Rde1 {[%clk 0:00:07.4]} 29... Bg7 {[%clk 0:00:01.8]} 30. Re7+
{[%clk 0:00:07]} 30... Kg8 {[%clk 0:00:02.3]} 31. Qc4+ {[%clk 0:00:06.1]} 31...
Kh8 {[%clk 0:00:02.6]} 32. c3 {[%clk 0:00:05.4]} 32... Rf8 {[%clk 0:00:02.5]}
33. a4 {[%clk 0:00:04.4]} 33... Nc6 {[%clk 0:00:02.1]} 34. R7e6 {[%clk
0:00:03.7]} 34... Qf5+ {[%clk 0:00:02.2]} 35. Ka2 {[%clk 0:00:02.5]} 35... Ne5
{[%clk 0:00:02.7]} 0-1

[Event "Early-Titled-Tuesday-Blitz-September-26-2023"]
[Site "Chess.com"]
[Date "2023.09.26"]
[Round "5"]
[White "Rital44"]
[Black "CalinGheorghiu"]
[Result "0-1"]
[WhiteElo "2528"]
[BlackElo "2368"]
[TimeControl "180+1"]
[EndTime "8:58:31 PDT"]
[Termination "CalinGheorghiu won by checkmate"]

1. d4 {[%clk 0:03:00.9]} 1... Nf6 {[%clk 0:02:55.8]} 2. c4 {[%clk 0:03:00.7]}
2... g6 {[%clk 0:02:54.5]} 3. Nf3 {[%clk 0:02:59.8]} 3... Bg7 {[%clk 0:02:54.7]}
4. Nc3 {[%clk 0:02:59.8]} 4... O-O {[%clk 0:02:54.8]} 5. e4 {[%clk 0:02:59.5]}
5... d6 {[%clk 0:02:55.3]} 6. Be2 {[%clk 0:02:59.8]} 6... e5 {[%clk 0:02:53.9]}
7. O-O {[%clk 0:03:00.3]} 7... Nbd7 {[%clk 0:02:51.3]} 8. Be3 {[%clk 0:02:58.6]}
8... exd4 {[%clk 0:02:48.8]} 9. Nxd4 {[%clk 0:02:58]} 9... Re8 {[%clk
0:02:49.1]} 10. f3 {[%clk 0:02:58]} 10... c6 {[%clk 0:02:42.2]} 11. Kh1 {[%clk
0:02:46.5]} 11... d5 {[%clk 0:02:33.7]} 12. cxd5 {[%clk 0:02:31.8]} 12... cxd5
{[%clk 0:02:33.7]} 13. Ndb5 {[%clk 0:02:28.9]} 13... dxe4 {[%clk 0:02:28]} 14.
Nd6 {[%clk 0:02:27.9]} 14... exf3 {[%clk 0:02:16.6]} 15. Nxe8 {[%clk 0:02:22.5]}
15... Qxe8 {[%clk 0:02:16.3]} 16. Rxf3 {[%clk 0:02:21.1]} 16... Ne5 {[%clk
0:02:16.3]} 17. Rf1 {[%clk 0:02:07.4]} 17... Bf5 {[%clk 0:02:01.9]} 18. Bf4
{[%clk 0:01:57.9]} 18... Rd8 {[%clk 0:01:59.4]} 19. Qb3 {[%clk 0:01:57.8]} 19...
Nd3 {[%clk 0:01:55.5]} 20. Bxd3 {[%clk 0:01:51.3]} 20... Bxd3 {[%clk 0:01:55.1]}
21. Rfe1 {[%clk 0:01:49.8]} 21... Qc6 {[%clk 0:01:54.1]} 22. Rac1 {[%clk
0:01:32.9]} 22... Bc4 {[%clk 0:01:48.8]} 23. Qc2 {[%clk 0:01:25]} 23... Bd3
{[%clk 0:01:49.1]} 24. Qd2 {[%clk 0:01:18.3]} 24... Qa6 {[%clk 0:01:27]} 25. Qe3
{[%clk 0:01:01.4]} 25... Ng4 {[%clk 0:01:18.4]} 26. Qe7 {[%clk 0:01:01.1]} 26...
Qb6 {[%clk 0:01:16]} 27. h3 {[%clk 0:00:56.5]} 27... Bf8 {[%clk 0:01:13.4]} 28.
Qh4 {[%clk 0:00:46.9]} 28... Nf2+ {[%clk 0:01:03.9]} 29. Kh2 {[%clk 0:00:46.4]}
29... Bd6 {[%clk 0:00:24.9]} 30. Bxd6 {[%clk 0:00:26.9]} 30... Rxd6 {[%clk
0:00:18.3]} 31. Re8+ {[%clk 0:00:20.1]} 31... Kg7 {[%clk 0:00:17.9]} 32. Rce1
{[%clk 0:00:18.5]} 32... Rf6 {[%clk 0:00:13.4]} 33. Nd5 {[%clk 0:00:17.3]} 33...
Qd6+ {[%clk 0:00:13.4]} 34. Qg3 {[%clk 0:00:11.7]} 34... Qxd5 {[%clk 0:00:12.9]}
35. R1e3 {[%clk 0:00:12.3]} 35... Be4 {[%clk 0:00:09.3]} 36. Rc3 {[%clk
0:00:10.2]} 36... Qd1 {[%clk 0:00:08.7]} 37. Qe5 {[%clk 0:00:09]} 37... Qh1+
{[%clk 0:00:07.3]} 38. Kg3 {[%clk 0:00:09.8]} 38... Qxg2+ {[%clk 0:00:07.8]} 39.
Kh4 {[%clk 0:00:10.5]} 39... Nd3 {[%clk 0:00:05]} 40. Qxe4 {[%clk 0:00:06.3]}
40... g5+ {[%clk 0:00:04.7]} 41. Kh5 {[%clk 0:00:06.3]} 41... Rh6# {[%clk
0:00:05.4]} 0-1

[Event "Early-Titled-Tuesday-Blitz-September-26-2023"]
[Site "Chess.com"]
[Date "2023.09.26"]
[Round "5"]
[White "kroppar"]
[Black "Doomfist26"]
[Result "0-1"]
[WhiteElo "2393"]
[BlackElo "2606"]
[TimeControl "180+1"]
[EndTime "8:58:32 PDT"]
[Termination "Doomfist26 won on time"]

1. e4 {[%clk 0:03:00.9]} 1... c5 {[%clk 0:03:00.3]} 2. Nf3 {[%clk 0:02:59.5]}
2... d6 {[%clk 0:03:00.8]} 3. c3 {[%clk 0:02:56]} 3... Nf6 {[%clk 0:03:00.6]} 4.
Be2 {[%clk 0:02:55.6]} 4... g6 {[%clk 0:03:01.1]} 5. O-O {[%clk 0:02:55]} 5...
Bg7 {[%clk 0:03:01.8]} 6. Re1 {[%clk 0:02:54.7]} 6... O-O {[%clk 0:03:02.3]} 7.
Bf1 {[%clk 0:02:55.2]} 7... e5 {[%clk 0:03:02.1]} 8. h3 {[%clk 0:02:54.9]} 8...
Re8 {[%clk 0:03:02.1]} 9. a4 {[%clk 0:02:49.3]} 9... Nc6 {[%clk 0:03:01.9]} 10.
Qc2 {[%clk 0:02:48.5]} 10... Qc7 {[%clk 0:02:51.4]} 11. Na3 {[%clk 0:02:48.1]}
11... a6 {[%clk 0:02:50.7]} 12. Nc4 {[%clk 0:02:46.6]} 12... d5 {[%clk 0:02:42]}
13. exd5 {[%clk 0:02:42.8]} 13... Nxd5 {[%clk 0:02:42.9]} 14. Qe4 {[%clk
0:02:13.5]} 14... Nf6 {[%clk 0:02:38.8]} 15. Qh4 {[%clk 0:02:10.9]} 15... e4
{[%clk 0:02:32.8]} 16. Ng5 {[%clk 0:02:01.7]} 16... Bf5 {[%clk 0:02:23.7]} 17.
g4 {[%clk 0:01:59.4]} 17... Bd7 {[%clk 0:02:15]} 18. Bg2 {[%clk 0:01:50.9]}
18... h6 {[%clk 0:01:31.2]} 19. Nxe4 {[%clk 0:01:47.8]} 19... Nxe4 {[%clk
0:01:30.3]} 20. Bxe4 {[%clk 0:01:28.2]} 20... f5 {[%clk 0:00:37.2]} 21. Bd5+
{[%clk 0:01:05.4]} 21... Kh7 {[%clk 0:00:37.8]} 22. f3 {[%clk 0:00:57.2]} 22...
Rxe1+ {[%clk 0:00:29.1]} 23. Qxe1 {[%clk 0:00:58.1]} 23... Re8 {[%clk
0:00:29.1]} 24. Qf2 {[%clk 0:00:55.5]} 24... b5 {[%clk 0:00:29.8]} 25. axb5
{[%clk 0:00:54.3]} 25... axb5 {[%clk 0:00:30]} 26. Ne3 {[%clk 0:00:50.9]} 26...
f4 {[%clk 0:00:30.4]} 27. Ng2 {[%clk 0:00:48.1]} 27... Nb4 {[%clk 0:00:20]} 28.
Be4 {[%clk 0:00:44.2]} 28... Rxe4 {[%clk 0:00:14.3]} 29. fxe4 {[%clk 0:00:44.4]}
29... Nd3 {[%clk 0:00:15]} 30. Qf3 {[%clk 0:00:42.9]} 30... c4 {[%clk
0:00:15.5]} 31. b3 {[%clk 0:00:31.3]} 31... Bc6 {[%clk 0:00:11.8]} 32. bxc4
{[%clk 0:00:28]} 32... bxc4 {[%clk 0:00:12.5]} 33. Ba3 {[%clk 0:00:23.2]} 33...
Qb7 {[%clk 0:00:12.7]} 34. Nxf4 {[%clk 0:00:17]} 34... Bxe4 {[%clk 0:00:12.8]}
35. Qe3 {[%clk 0:00:17.7]} 35... Bh1 {[%clk 0:00:05.7]} 36. Rf1 {[%clk
0:00:16.8]} 36... Nxf4 {[%clk 0:00:05.7]} 37. Rf2 {[%clk 0:00:11]} 37... Nd3
{[%clk 0:00:06]} 38. Rh2 {[%clk 0:00:07.7]} 38... Qb1+ {[%clk 0:00:04.4]} 39.
Bc1 {[%clk 0:00:03.2]} 39... Qxc1+ {[%clk 0:00:04.6]} 0-1

[Event "Early-Titled-Tuesday-Blitz-September-26-2023"]
[Site "Chess.com"]
[Date "2023.09.26"]
[Round "5"]
[White "MikaelyanArman"]
[Black "ActorXu"]
[Result "0-1"]
[WhiteElo "2856"]
[BlackElo "2717"]
[TimeControl "180+1"]
[EndTime "8:58:34 PDT"]
[Termination "ActorXu won on time"]

1. d4 {[%clk 0:03:00.9]} 1... Nf6 {[%clk 0:02:59.8]} 2. c4 {[%clk 0:03:01]} 2...
e6 {[%clk 0:03:00.1]} 3. Nf3 {[%clk 0:02:59.7]} 3... d5 {[%clk 0:02:59.8]} 4.
Nc3 {[%clk 0:02:58.1]} 4... Bb4 {[%clk 0:03:00.2]} 5. Qb3 {[%clk 0:02:57.7]}
5... c5 {[%clk 0:02:58.9]} 6. dxc5 {[%clk 0:02:54.6]} 6... Nc6 {[%clk
0:02:58.3]} 7. Bg5 {[%clk 0:02:20.5]} 7... Qa5 {[%clk 0:02:57.5]} 8. Bxf6 {[%clk
0:02:14.3]} 8... dxc4 {[%clk 0:02:57.2]} 9. Qxc4 {[%clk 0:02:13]} 9... gxf6
{[%clk 0:02:57.3]} 10. Rc1 {[%clk 0:01:41.1]} 10... Qxc5 {[%clk 0:02:49.9]} 11.
Qh4 {[%clk 0:01:33.6]} 11... Ke7 {[%clk 0:02:48.6]} 12. g3 {[%clk 0:01:29.4]}
12... Bxc3+ {[%clk 0:02:39.5]} 13. Rxc3 {[%clk 0:01:16]} 13... Qb4 {[%clk
0:02:27.5]} 14. Qxb4+ {[%clk 0:01:10.9]} 14... Nxb4 {[%clk 0:02:27.3]} 15. Bg2
{[%clk 0:00:57.4]} 15... Bd7 {[%clk 0:02:04]} 16. Nd4 {[%clk 0:00:39]} 16...
Nxa2 {[%clk 0:01:51.1]} 17. Ra3 {[%clk 0:00:33]} 17... Nb4 {[%clk 0:01:30]} 18.
Bxb7 {[%clk 0:00:32.7]} 18... e5 {[%clk 0:00:40.6]} 19. Bxa8 {[%clk 0:00:32.4]}
19... Rxa8 {[%clk 0:00:41]} 20. Re3 {[%clk 0:00:10.7]} 20... Kf8 {[%clk
0:00:39.3]} 21. Rb3 {[%clk 0:00:04.8]} 21... Rb8 {[%clk 0:00:38.7]} 22. Kd2
{[%clk 0:00:04.7]} 22... exd4 {[%clk 0:00:36.3]} 23. Ra1 {[%clk 0:00:05.2]}
23... Be6 {[%clk 0:00:30.1]} 24. Rba3 {[%clk 0:00:05.7]} 24... a6 {[%clk
0:00:25.7]} 25. Ra5 {[%clk 0:00:02.9]} 25... Ke7 {[%clk 0:00:15.4]} 26. Rc1
{[%clk 0:00:03.2]} 26... Kd6 {[%clk 0:00:13.6]} 27. e4 {[%clk 0:00:02.6]} 27...
Rb5 {[%clk 0:00:05.9]} 28. Rxb5 {[%clk 0:00:02.4]} 28... axb5 {[%clk 0:00:05.8]}
29. Ra1 {[%clk 0:00:02.9]} 29... Bc4 {[%clk 0:00:05.2]} 30. f4 {[%clk 0:00:03]}
30... Nc6 {[%clk 0:00:03.5]} 31. Ra6 {[%clk 0:00:02.8]} 31... Kc5 {[%clk
0:00:03.9]} 32. Ra8 {[%clk 0:00:02.9]} 32... Kb4 {[%clk 0:00:02.9]} 33. Rc8
{[%clk 0:00:03.5]} 33... Na5 {[%clk 0:00:03.1]} 34. Rc7 {[%clk 0:00:03]} 34...
Nb3+ {[%clk 0:00:03.6]} 35. Kd1 {[%clk 0:00:03.7]} 35... d3 {[%clk 0:00:03.5]}
36. e5 {[%clk 0:00:03.3]} 36... fxe5 {[%clk 0:00:03.2]} 37. fxe5 {[%clk
0:00:04.2]} 37... d2 {[%clk 0:00:03.4]} 38. Rd7 {[%clk 0:00:02.3]} 38... Be6
{[%clk 0:00:03.3]} 0-1

[Event "Early-Titled-Tuesday-Blitz-September-26-2023"]
[Site "Chess.com"]
[Date "2023.09.26"]
[Round "5"]
[White "Haykoooo0o"]
[Black "Roman_Ovetchkin"]
[Result "0-1"]
[WhiteElo "2477"]
[BlackElo "2694"]
[TimeControl "180+1"]
[EndTime "8:58:39 PDT"]
[Termination "Roman_Ovetchkin won by resignation"]

1. d4 {[%clk 0:02:56]} 1... Nf6 {[%clk 0:02:59.6]} 2. Nf3 {[%clk 0:02:56.4]}
2... c5 {[%clk 0:02:54.7]} 3. c3 {[%clk 0:02:53.1]} 3... b6 {[%clk 0:02:52.5]}
4. Bf4 {[%clk 0:02:52.6]} 4... Bb7 {[%clk 0:02:50.7]} 5. e3 {[%clk 0:02:53.1]}
5... d6 {[%clk 0:02:49.6]} 6. h3 {[%clk 0:02:53]} 6... g6 {[%clk 0:02:48.5]} 7.
Be2 {[%clk 0:02:53.1]} 7... Bg7 {[%clk 0:02:48.8]} 8. O-O {[%clk 0:02:53.8]}
8... O-O {[%clk 0:02:49.4]} 9. Bh2 {[%clk 0:02:54.4]} 9... Nbd7 {[%clk
0:02:47.6]} 10. Nbd2 {[%clk 0:02:54.4]} 10... a6 {[%clk 0:02:47.3]} 11. Ne1
{[%clk 0:02:53.3]} 11... b5 {[%clk 0:02:43.8]} 12. Bf3 {[%clk 0:02:53.5]} 12...
Qb6 {[%clk 0:02:43.3]} 13. Bxb7 {[%clk 0:02:52.4]} 13... Qxb7 {[%clk 0:02:43.5]}
14. Nef3 {[%clk 0:02:53.3]} 14... Rfc8 {[%clk 0:02:39.4]} 15. Re1 {[%clk
0:02:52.5]} 15... Ne4 {[%clk 0:02:36.1]} 16. Qb3 {[%clk 0:02:46.3]} 16... Nxd2
{[%clk 0:02:34]} 17. Nxd2 {[%clk 0:02:45.6]} 17... Nb6 {[%clk 0:02:30]} 18. Nf3
{[%clk 0:02:38.4]} 18... Qd5 {[%clk 0:02:20.6]} 19. Qd1 {[%clk 0:02:20.2]} 19...
cxd4 {[%clk 0:02:09.1]} 20. exd4 {[%clk 0:02:18.5]} 20... Ra7 {[%clk 0:02:08.4]}
21. Qe2 {[%clk 0:02:14]} 21... Na4 {[%clk 0:02:06]} 22. a3 {[%clk 0:02:13]}
22... Rac7 {[%clk 0:01:46.5]} 23. Rab1 {[%clk 0:02:06.3]} 23... Bh6 {[%clk
0:01:43.6]} 24. Bg3 {[%clk 0:02:00.5]} 24... Nb6 {[%clk 0:01:33.8]} 25. Qe4
{[%clk 0:01:55.2]} 25... Qxe4 {[%clk 0:01:33.3]} 26. Rxe4 {[%clk 0:01:56.1]}
26... Nd5 {[%clk 0:01:32.2]} 27. Rbe1 {[%clk 0:01:54.1]} 27... Rc6 {[%clk
0:01:25.1]} 28. Rxe7 {[%clk 0:01:45]} 28... Nxe7 {[%clk 0:01:24.3]} 29. Rxe7
{[%clk 0:01:45.9]} 29... Bf8 {[%clk 0:01:22.6]} 30. Rd7 {[%clk 0:01:40.4]} 30...
Re8 {[%clk 0:01:20.8]} 31. Kf1 {[%clk 0:01:37.2]} 31... a5 {[%clk 0:01:14.5]}
32. Rb7 {[%clk 0:01:34.8]} 32... b4 {[%clk 0:01:12.1]} 33. axb4 {[%clk
0:01:33.7]} 33... axb4 {[%clk 0:01:12.5]} 34. Rxb4 {[%clk 0:01:34.3]} 34... Ra6
{[%clk 0:01:12.8]} 35. Kg1 {[%clk 0:01:26.2]} 35... Raa8 {[%clk 0:01:10.4]} 36.
Rb6 {[%clk 0:01:25.2]} 36... Reb8 {[%clk 0:01:10.1]} 37. Rxb8 {[%clk 0:01:22.2]}
37... Rxb8 {[%clk 0:01:11]} 38. b3 {[%clk 0:01:05.7]} 38... Rxb3 {[%clk
0:01:10.3]} 39. c4 {[%clk 0:01:05.7]} 39... Rb4 {[%clk 0:01:07]} 40. Nd2 {[%clk
0:00:52.1]} 40... f5 {[%clk 0:01:02.7]} 41. Kf1 {[%clk 0:00:48.4]} 41... Kf7
{[%clk 0:01:01.3]} 42. Ke2 {[%clk 0:00:48.1]} 42... Ke6 {[%clk 0:00:59.7]} 43.
Kd3 {[%clk 0:00:48.2]} 43... Bh6 {[%clk 0:00:57.4]} 44. d5+ {[%clk 0:00:42.5]}
44... Kd7 {[%clk 0:00:56.6]} 45. Nf3 {[%clk 0:00:31.8]} 45... Bg7 {[%clk
0:00:50.9]} 46. Bf4 {[%clk 0:00:17.6]} 46... Rb3+ {[%clk 0:00:49.3]} 47. Ke2
{[%clk 0:00:15.9]} 47... Rc3 {[%clk 0:00:42.3]} 48. Nd2 {[%clk 0:00:15.9]} 48...
Bd4 {[%clk 0:00:40.5]} 49. h4 {[%clk 0:00:13.5]} 49... Bc5 {[%clk 0:00:38.5]}
50. g3 {[%clk 0:00:13.7]} 50... Kc7 {[%clk 0:00:35.3]} 51. Nb1 {[%clk
0:00:11.8]} 51... Rxc4 {[%clk 0:00:33.3]} 52. Nd2 {[%clk 0:00:11.9]} 52... Rd4
{[%clk 0:00:31.2]} 53. Nb3 {[%clk 0:00:07.3]} 53... Rxd5 {[%clk 0:00:31.4]} 54.
Kf3 {[%clk 0:00:06.4]} 54... Rd3+ {[%clk 0:00:30.9]} 55. Ke2 {[%clk 0:00:07.1]}
55... Rxb3 {[%clk 0:00:30.9]} 0-1

[Event "Early-Titled-Tuesday-Blitz-September-26-2023"]
[Site "Chess.com"]
[Date "2023.09.26"]
[Round "5"]
[White "ATM622"]
[Black "Fore_Man"]
[Result "0-1"]
[WhiteElo "2410"]
[BlackElo "2298"]
[TimeControl "180+1"]
[EndTime "8:58:43 PDT"]
[Termination "Fore_Man won on time"]

1. d4 {[%clk 0:03:00.9]} 1... Nf6 {[%clk 0:02:59.5]} 2. c4 {[%clk 0:03:01.1]}
2... e6 {[%clk 0:02:59.8]} 3. g3 {[%clk 0:03:00.9]} 3... d5 {[%clk 0:02:59.5]}
4. Bg2 {[%clk 0:03:01.2]} 4... Bb4+ {[%clk 0:02:58.8]} 5. Nd2 {[%clk 0:03:00]}
5... O-O {[%clk 0:02:58.1]} 6. Qc2 {[%clk 0:02:59.6]} 6... c6 {[%clk 0:02:56.1]}
7. Nf3 {[%clk 0:02:59.3]} 7... b6 {[%clk 0:02:55.3]} 8. O-O {[%clk 0:02:58.7]}
8... Bb7 {[%clk 0:02:55.2]} 9. e4 {[%clk 0:02:59.3]} 9... dxe4 {[%clk 0:02:50]}
10. Nxe4 {[%clk 0:02:58.6]} 10... Nxe4 {[%clk 0:02:50.5]} 11. Qxe4 {[%clk
0:02:59.1]} 11... Nd7 {[%clk 0:02:48.5]} 12. a3 {[%clk 0:02:56.5]} 12... Nf6
{[%clk 0:02:47.3]} 13. Qc2 {[%clk 0:02:56.3]} 13... Be7 {[%clk 0:02:45.7]} 14.
Rd1 {[%clk 0:02:49.8]} 14... Qc8 {[%clk 0:02:41.9]} 15. c5 {[%clk 0:02:34.8]}
15... Nd5 {[%clk 0:02:37.8]} 16. b4 {[%clk 0:02:31]} 16... a5 {[%clk 0:02:37]}
17. Bd2 {[%clk 0:02:29.4]} 17... h6 {[%clk 0:02:33]} 18. Ne5 {[%clk 0:02:28.2]}
18... axb4 {[%clk 0:02:26.6]} 19. axb4 {[%clk 0:02:27.7]} 19... bxc5 {[%clk
0:02:26.7]} 20. bxc5 {[%clk 0:02:27]} 20... Bf6 {[%clk 0:02:26.2]} 21. Nc4
{[%clk 0:02:14.4]} 21... Ba6 {[%clk 0:02:16.1]} 22. Bxd5 {[%clk 0:02:07.3]}
22... exd5 {[%clk 0:02:14.5]} 23. Nb6 {[%clk 0:02:07.3]} 23... Qh3 {[%clk
0:02:03.8]} 24. Nxa8 {[%clk 0:02:03]} 24... Rxa8 {[%clk 0:01:59.7]} 25. Be3
{[%clk 0:01:59.2]} 25... Qc8 {[%clk 0:01:45.5]} 26. Ra3 {[%clk 0:01:56.6]} 26...
Bb5 {[%clk 0:01:45]} 27. Rda1 {[%clk 0:01:56.1]} 27... Rxa3 {[%clk 0:01:44.4]}
28. Rxa3 {[%clk 0:01:57]} 28... g6 {[%clk 0:01:44.1]} 29. Ra7 {[%clk 0:01:52.3]}
29... Qh3 {[%clk 0:01:39.1]} 30. Ra1 {[%clk 0:01:48.3]} 30... Kg7 {[%clk
0:01:35.1]} 31. Rb1 {[%clk 0:01:39]} 31... Bc4 {[%clk 0:01:33]} 32. Qd2 {[%clk
0:01:35.6]} 32... g5 {[%clk 0:01:26.7]} 33. Rc1 {[%clk 0:01:33.9]} 33... Bb5
{[%clk 0:01:24.5]} 34. Rb1 {[%clk 0:01:33.4]} 34... Bc4 {[%clk 0:01:24.1]} 35.
Qd1 {[%clk 0:00:51.1]} 35... Qf5 {[%clk 0:01:03.1]} 36. Rb7 {[%clk 0:00:29.9]}
36... g4 {[%clk 0:00:43.4]} 37. Bf4 {[%clk 0:00:08.9]} 37... Bd3 {[%clk
0:00:41.2]} 38. Qd2 {[%clk 0:00:03.9]} 38... Qe4 {[%clk 0:00:21.7]} 39. Qe3
{[%clk 0:00:04.1]} 39... Qf5 {[%clk 0:00:15.8]} 40. Bxh6+ {[%clk 0:00:03.7]}
40... Kg6 {[%clk 0:00:16.4]} 41. Bf4 {[%clk 0:00:03.9]} 41... Bc4 {[%clk
0:00:09.9]} 42. Qe8 {[%clk 0:00:02.4]} 42... Bxd4 {[%clk 0:00:07.1]} 43. Qg8+
{[%clk 0:00:02]} 43... Bg7 {[%clk 0:00:07.5]} 44. Qe8 {[%clk 0:00:01.3]} 44...
Qd3 {[%clk 0:00:04.1]} 0-1

[Event "Early-Titled-Tuesday-Blitz-September-26-2023"]
[Site "Chess.com"]
[Date "2023.09.26"]
[Round "5"]
[White "Yuruultei"]
[Black "Shockerlover"]
[Result "1-0"]
[WhiteElo "2277"]
[BlackElo "1985"]
[TimeControl "180+1"]
[EndTime "8:58:43 PDT"]
[Termination "Yuruultei won on time"]

1. d4 {[%clk 0:02:52.3]} 1... Nf6 {[%clk 0:02:54.4]} 2. c4 {[%clk 0:02:53.2]}
2... d6 {[%clk 0:02:50.4]} 3. Nf3 {[%clk 0:02:51.4]} 3... g6 {[%clk 0:02:48.7]}
4. Nc3 {[%clk 0:02:47.3]} 4... Bg7 {[%clk 0:02:49.1]} 5. e4 {[%clk 0:02:45.9]}
5... O-O {[%clk 0:02:48.6]} 6. Be2 {[%clk 0:02:45.8]} 6... Nbd7 {[%clk
0:02:46.1]} 7. Be3 {[%clk 0:02:42.5]} 7... Ng4 {[%clk 0:02:41.4]} 8. Bg5 {[%clk
0:02:38.8]} 8... c5 {[%clk 0:02:34.1]} 9. O-O {[%clk 0:02:29.3]} 9... cxd4
{[%clk 0:02:33.3]} 10. Nxd4 {[%clk 0:02:25.1]} 10... Nde5 {[%clk 0:02:23.4]} 11.
Rc1 {[%clk 0:02:13]} 11... Nf6 {[%clk 0:02:14.4]} 12. f3 {[%clk 0:02:07.9]}
12... Bd7 {[%clk 0:02:05]} 13. Be3 {[%clk 0:02:00.7]} 13... Rc8 {[%clk
0:02:03.2]} 14. b3 {[%clk 0:01:45.6]} 14... a6 {[%clk 0:02:00.4]} 15. Nd5 {[%clk
0:01:29]} 15... e6 {[%clk 0:01:57]} 16. Nc3 {[%clk 0:01:18.8]} 16... Nc6 {[%clk
0:01:35.5]} 17. Nxc6 {[%clk 0:01:11.3]} 17... Bxc6 {[%clk 0:01:33.8]} 18. Qd2
{[%clk 0:01:12.2]} 18... Qc7 {[%clk 0:01:31.2]} 19. Rfd1 {[%clk 0:01:01.8]}
19... Rfd8 {[%clk 0:01:31.6]} 20. Bf4 {[%clk 0:01:02.3]} 20... Ne8 {[%clk
0:01:29.2]} 21. Nd5 {[%clk 0:01:01.2]} 21... exd5 {[%clk 0:01:18.3]} 22. cxd5
{[%clk 0:01:02.1]} 22... Qb6+ {[%clk 0:01:15.8]} 23. Be3 {[%clk 0:01:01.4]}
23... Qc7 {[%clk 0:01:04.9]} 24. dxc6 {[%clk 0:00:59.9]} 24... bxc6 {[%clk
0:01:05.8]} 25. Bxa6 {[%clk 0:00:57.4]} 25... Ra8 {[%clk 0:01:05]} 26. Bc4
{[%clk 0:00:55.1]} 26... Qe7 {[%clk 0:00:47]} 27. Bf4 {[%clk 0:00:40.7]} 27...
d5 {[%clk 0:00:40.3]} 28. exd5 {[%clk 0:00:40.4]} 28... cxd5 {[%clk 0:00:40.4]}
29. Bxd5 {[%clk 0:00:41.3]} 29... Ra7 {[%clk 0:00:17.7]} 30. Qf2 {[%clk
0:00:35.4]} 30... Rad7 {[%clk 0:00:16.7]} 31. Rc5 {[%clk 0:00:31.9]} 31... Nf6
{[%clk 0:00:15]} 32. Bg5 {[%clk 0:00:29.1]} 32... h6 {[%clk 0:00:06.6]} 33. Bxf6
{[%clk 0:00:24.1]} 33... Qxf6 {[%clk 0:00:07.5]} 34. Ra5 {[%clk 0:00:21.4]}
34... Qd6 {[%clk 0:00:05.1]} 35. Bxf7+ {[%clk 0:00:21]} 35... Kf8 {[%clk
0:00:04.8]} 36. Rxd6 {[%clk 0:00:21.9]} 36... Rxd6 {[%clk 0:00:04.5]} 37. Rd5
{[%clk 0:00:16.8]} 37... Kxf7 {[%clk 0:00:03.1]} 38. Rxd6 {[%clk 0:00:16.5]}
38... Rxd6 {[%clk 0:00:03.8]} 39. Qc2 {[%clk 0:00:17.1]} 39... Bd4+ {[%clk
0:00:01.9]} 40. Kf1 {[%clk 0:00:16.8]} 40... Bb6 {[%clk 0:00:02.5]} 41. Qc4+
{[%clk 0:00:16.8]} 41... Re6 {[%clk 0:00:02.2]} 42. a4 {[%clk 0:00:16.3]} 42...
Kf6 {[%clk 0:00:02.7]} 43. b4 {[%clk 0:00:16.5]} 43... Be3 {[%clk 0:00:02]} 44.
a5 {[%clk 0:00:16.4]} 1-0